[Event "Titled Tuesday Blitz February 07 Late 2023"]
[White "Kollars, Dmitrij"]
[Black "Zhigalko, Sergei"]
[WhiteFideId "12909572"]
[BlackFideId "13502956"]
[WhiteElo "2607"]
[BlackElo "2572"]
[Result "1-0"]
[Round "10"]
[TimeControl "180+2"]
[Date "2023.02.07"]
[WhiteClock "0:00:29"]
[BlackClock "0:00:01"]

1. e4 {[%clk 0:03:00]}  c5 {[%clk 0:02:58]} 2. Nf3 {[%clk 0:03:00]}  Nc6 {[%clk 0:02:58]} 3. Bb5 {[%clk 0:02:59]}  Nf6 {[%clk 0:02:59]} 4. Bxc6 {[%clk 0:02:57]}  dxc6 {[%clk 0:03:00]} 5. d3 {[%clk 0:02:57]}  Bg4 {[%clk 0:03:00]} 6. Nbd2 {[%clk 0:02:56]}  Qc7 {[%clk 0:02:59]} 7. h3 {[%clk 0:02:54]}  Bh5 {[%clk 0:02:59]} 8. Nf1 {[%clk 0:02:52]}  e6 {[%clk 0:02:58]} 9. Ng3 {[%clk 0:02:49]}  Bg6 {[%clk 0:02:58]} 10. O-O {[%clk 0:02:33]}  Bd6 {[%clk 0:02:56]} 11. Qe1 {[%clk 0:02:33]}  Nd7 {[%clk 0:02:55]} 12. Nh4 {[%clk 0:02:33]}  f6 {[%clk 0:02:47]} 13. f4 {[%clk 0:02:25]}  Bf7 {[%clk 0:02:43]} 14. e5 {[%clk 0:02:25]}  fxe5 {[%clk 0:02:40]} 15. f5 {[%clk 0:02:25]}  O-O {[%clk 0:01:54]} 16. Ne4 {[%clk 0:02:07]}  Be7 {[%clk 0:01:54]} 17. Bg5 {[%clk 0:02:06]}  Bxg5 {[%clk 0:01:38]} 18. Nxg5 {[%clk 0:02:07]}  exf5 {[%clk 0:01:37]} 19. Nxf5 {[%clk 0:02:08]}  Nf6 {[%clk 0:01:36]} 20. Qg3 {[%clk 0:02:04]}  Nh5 {[%clk 0:01:27]} 21. Qh4 {[%clk 0:02:01]}  Qd8 {[%clk 0:00:37]} 22. Nxg7 {[%clk 0:01:49]}  Qd4+ {[%clk 0:00:19]} 23. Qxd4 {[%clk 0:01:48]}  cxd4 {[%clk 0:00:16]} 24. Rxf7 {[%clk 0:01:37]}  Nxg7 {[%clk 0:00:08]} 25. Rxb7 {[%clk 0:01:37]}  Rab8 {[%clk 0:00:08]} 26. Rxb8 {[%clk 0:01:22]}  Rxb8 {[%clk 0:00:07]} 27. b3 {[%clk 0:01:23]}  Nf5 {[%clk 0:00:06]} 28. Nf3 {[%clk 0:01:15]}  Rb5 {[%clk 0:00:04]} 29. Nd2 {[%clk 0:01:13]}  Ne3 {[%clk 0:00:03]} 30. Rc1 {[%clk 0:01:07]}  Rc5 {[%clk 0:00:03]} 31. Nc4 {[%clk 0:01:01]}  Nxc4 {[%clk 0:00:04]} 32. dxc4 {[%clk 0:01:02]}  Kf7 {[%clk 0:00:03]} 33. Kf2 {[%clk 0:01:00]}  e4 {[%clk 0:00:03]} 34. Rd1 {[%clk 0:00:59]}  Rf5+ {[%clk 0:00:03]} 35. Ke2 {[%clk 0:00:56]}  c5 {[%clk 0:00:04]} 36. b4 {[%clk 0:00:57]}  Ke6 {[%clk 0:00:03]} 37. bxc5 {[%clk 0:00:52]}  Ke5 {[%clk 0:00:03]} 38. Rb1 {[%clk 0:00:43]}  e3 {[%clk 0:00:01]} 39. Rf1 {[%clk 0:00:40]}  Rg5 {[%clk 0:00:01]} 40. g4 {[%clk 0:00:39]}  Ke4 {[%clk 0:00:01]} 41. Rf5 {[%clk 0:00:29]}  Rxf5 {[%clk 0:00:01]} 42. gxf5 {[%clk 0:00:29]}  Kxf5 {[%clk 0:00:01]} 43. c3 {[%clk 0:00:29]} 1-0


[Site "https://www.chess.com"]

[Event "Titled Tuesday Blitz February 07 Late 2023"]
[White "Ibarra Jerez, Jose Carlos"]
[Black "Paravyan, David"]
[WhiteFideId "2226332"]
[BlackFideId "4194985"]
[WhiteElo "2563"]
[BlackElo "2601"]
[Result "1/2-1/2"]
[Round "10"]
[TimeControl "180+2"]
[Date "2023.02.07"]
[WhiteClock "0:00:05"]
[BlackClock "0:00:05"]

1. e4 {[%clk 0:03:00]}  e5 {[%clk 0:03:00]} 2. Nf3 {[%clk 0:03:01]}  Nf6 {[%clk 0:03:00]} 3. Nc3 {[%clk 0:03:02]}  Nc6 {[%clk 0:03:00]} 4. h3 {[%clk 0:03:02]}  Bb4 {[%clk 0:02:57]} 5. Nd5 {[%clk 0:03:01]}  Nxd5 {[%clk 0:02:57]} 6. exd5 {[%clk 0:03:01]}  e4 {[%clk 0:02:58]} 7. dxc6 {[%clk 0:03:00]}  exf3 {[%clk 0:02:58]} 8. Qxf3 {[%clk 0:02:56]}  dxc6 {[%clk 0:02:58]} 9. Bc4 {[%clk 0:02:54]}  O-O {[%clk 0:02:58]} 10. O-O {[%clk 0:02:52]}  Qd7 {[%clk 0:02:59]} 11. c3 {[%clk 0:02:43]}  Bd6 {[%clk 0:02:58]} 12. d4 {[%clk 0:02:35]}  Qf5 {[%clk 0:02:58]} 13. Qxf5 {[%clk 0:02:32]}  Bxf5 {[%clk 0:02:58]} 14. Re1 {[%clk 0:02:32]}  a5 {[%clk 0:02:54]} 15. a4 {[%clk 0:02:21]}  Rfe8 {[%clk 0:02:52]} 16. Bd2 {[%clk 0:02:17]}  Bd7 {[%clk 0:02:45]} 17. Bb3 {[%clk 0:02:08]}  Kf8 {[%clk 0:02:43]} 18. Kf1 {[%clk 0:01:28]}  Ra6 {[%clk 0:02:41]} 19. Rxe8+ {[%clk 0:01:25]}  Bxe8 {[%clk 0:02:42]} 20. Bc4 {[%clk 0:01:24]}  Ra8 {[%clk 0:02:31]} 21. Ke2 {[%clk 0:01:22]}  h6 {[%clk 0:02:31]} 22. Kf3 {[%clk 0:01:22]}  c5 {[%clk 0:02:29]} 23. d5 {[%clk 0:01:15]}  Bd7 {[%clk 0:02:27]} 24. Bb5 {[%clk 0:01:11]}  Bf5 {[%clk 0:02:23]} 25. g4 {[%clk 0:01:10]}  Bc2 {[%clk 0:02:17]} 26. Rc1 {[%clk 0:00:52]}  Bg6 {[%clk 0:02:17]} 27. Re1 {[%clk 0:00:51]}  f6 {[%clk 0:02:17]} 28. h4 {[%clk 0:00:38]}  Bf7 {[%clk 0:02:17]} 29. c4 {[%clk 0:00:35]}  Rc8 {[%clk 0:02:17]} 30. Bd7 {[%clk 0:00:35]}  Rd8 {[%clk 0:02:16]} 31. Be6 {[%clk 0:00:34]}  b6 {[%clk 0:01:56]} 32. Bxf7 {[%clk 0:00:34]}  Kxf7 {[%clk 0:01:57]} 33. h5 {[%clk 0:00:34]}  Be5 {[%clk 0:01:54]} 34. b3 {[%clk 0:00:34]}  c6 {[%clk 0:01:26]} 35. dxc6 {[%clk 0:00:28]}  Rc8 {[%clk 0:01:27]} 36. Be3 {[%clk 0:00:24]}  Rxc6 {[%clk 0:01:26]} 37. Rd1 {[%clk 0:00:25]}  Ke6 {[%clk 0:01:10]} 38. Rd8 {[%clk 0:00:24]}  Bd6 {[%clk 0:00:49]} 39. Ke4 {[%clk 0:00:23]}  Be7 {[%clk 0:00:49]} 40. Rg8 {[%clk 0:00:21]}  Kf7 {[%clk 0:00:49]} 41. Rb8 {[%clk 0:00:22]}  Rd6 {[%clk 0:00:48]} 42. Rb7 {[%clk 0:00:21]}  Ke6 {[%clk 0:00:46]} 43. f4 {[%clk 0:00:21]}  Kf7 {[%clk 0:00:36]} 44. f5 {[%clk 0:00:21]}  Kf8 {[%clk 0:00:36]} 45. Rb8+ {[%clk 0:00:19]}  Kf7 {[%clk 0:00:36]} 46. Rb7 {[%clk 0:00:19]}  Kf8 {[%clk 0:00:37]} 47. Bf4 {[%clk 0:00:18]}  Rd4+ {[%clk 0:00:37]} 48. Ke3 {[%clk 0:00:19]}  Bd6 {[%clk 0:00:37]} 49. Bxd6+ {[%clk 0:00:15]}  Rxd6 {[%clk 0:00:38]} 50. Kf3 {[%clk 0:00:14]}  Rd3+ {[%clk 0:00:38]} 51. Ke4 {[%clk 0:00:13]}  Rxb3 {[%clk 0:00:38]} 52. Kd5 {[%clk 0:00:14]}  Rb4 {[%clk 0:00:33]} 53. Rb8+ {[%clk 0:00:13]}  Kf7 {[%clk 0:00:33]} 54. Rb7+ {[%clk 0:00:14]}  Kg8 {[%clk 0:00:34]} 55. Rb8+ {[%clk 0:00:14]}  Kh7 {[%clk 0:00:34]} 56. Rb7 {[%clk 0:00:14]}  Rb1 {[%clk 0:00:22]} 57. Kc6 {[%clk 0:00:13]}  Rb4 {[%clk 0:00:22]} 58. Kd5 {[%clk 0:00:13]}  Rxa4 {[%clk 0:00:15]} 59. Rxb6 {[%clk 0:00:13]}  Ra1 {[%clk 0:00:16]} 60. Kxc5 {[%clk 0:00:11]}  Rg1 {[%clk 0:00:16]} 61. Kd6 {[%clk 0:00:11]}  Rxg4 {[%clk 0:00:16]} 62. c5 {[%clk 0:00:11]}  Rd4+ {[%clk 0:00:17]} 63. Ke6 {[%clk 0:00:11]}  Re4+ {[%clk 0:00:17]} 64. Kd5 {[%clk 0:00:11]}  Re1 {[%clk 0:00:13]} 65. c6 {[%clk 0:00:12]}  Rd1+ {[%clk 0:00:13]} 66. Ke6 {[%clk 0:00:11]}  Rc1 {[%clk 0:00:11]} 67. Kd7 {[%clk 0:00:12]}  Rd1+ {[%clk 0:00:11]} 68. Kc8 {[%clk 0:00:12]}  a4 {[%clk 0:00:12]} 69. Ra6 {[%clk 0:00:11]}  Ra1 {[%clk 0:00:09]} 70. c7 {[%clk 0:00:11]}  a3 {[%clk 0:00:09]} 71. Kb7 {[%clk 0:00:11]}  Rb1+ {[%clk 0:00:10]} 72. Kc6 {[%clk 0:00:09]}  Rc1+ {[%clk 0:00:10]} 73. Kd7 {[%clk 0:00:09]}  Rd1+ {[%clk 0:00:10]} 74. Kc6 {[%clk 0:00:08]}  Rc1+ {[%clk 0:00:10]} 75. Kb7 {[%clk 0:00:08]}  Rb1+ {[%clk 0:00:10]} 76. Ka8 {[%clk 0:00:08]}  Rc1 {[%clk 0:00:09]} 77. Kb8 {[%clk 0:00:08]}  Rb1+ {[%clk 0:00:07]} 78. Kc8 {[%clk 0:00:08]}  Ra1 {[%clk 0:00:05]} 79. Kb7 {[%clk 0:00:05]}  Rb1+ {[%clk 0:00:05]} 1/2-1/2


[Site "https://www.chess.com"]

[Event "Titled Tuesday Blitz February 07 Late 2023"]
[White "Boros, Denes"]
[Black "Bortnyk, Olexandr"]
[WhiteFideId "722340"]
[BlackFideId "14120828"]
[WhiteElo "2406"]
[BlackElo "2605"]
[Result "0-1"]
[Round "10"]
[TimeControl "180+2"]
[Date "2023.02.07"]
[WhiteClock "0:00:27"]
[BlackClock "0:00:07"]

1. e4 {[%clk 0:03:00]}  Nf6 {[%clk 0:02:55]} 2. d3 {[%clk 0:03:00]}  e5 {[%clk 0:02:53]} 3. f4 {[%clk 0:03:00]}  Bc5 {[%clk 0:02:46]} 4. fxe5 {[%clk 0:02:52]}  Nxe4 {[%clk 0:02:45]} 5. Qg4 {[%clk 0:02:38]}  d5 {[%clk 0:02:01]} 6. Qxg7 {[%clk 0:02:34]}  Qh4+ {[%clk 0:01:52]} 7. g3 {[%clk 0:02:31]}  Bf2+ {[%clk 0:01:52]} 8. Ke2 {[%clk 0:02:25]}  Qg4+ {[%clk 0:00:44]} 9. Qxg4 {[%clk 0:02:24]}  Bxg4+ {[%clk 0:00:45]} 10. Nf3 {[%clk 0:02:24]}  Bb6 {[%clk 0:00:41]} 11. Nc3 {[%clk 0:01:53]}  Nc6 {[%clk 0:00:35]} 12. Be3 {[%clk 0:01:30]}  Nxc3+ {[%clk 0:00:20]} 13. bxc3 {[%clk 0:01:31]}  d4 {[%clk 0:00:16]} 14. cxd4 {[%clk 0:01:18]}  Bxd4 {[%clk 0:00:12]} 15. Rb1 {[%clk 0:01:13]}  O-O-O {[%clk 0:00:12]} 16. h3 {[%clk 0:01:06]}  Bxf3+ {[%clk 0:00:11]} 17. Kxf3 {[%clk 0:01:07]}  Nxe5+ {[%clk 0:00:11]} 18. Kf2 {[%clk 0:01:07]}  Bxe3+ {[%clk 0:00:03]} 19. Kxe3 {[%clk 0:01:08]}  Rhe8 {[%clk 0:00:04]} 20. Kf2 {[%clk 0:01:05]}  Rd6 {[%clk 0:00:04]} 21. Bg2 {[%clk 0:01:00]}  Rf6+ {[%clk 0:00:05]} 22. Kg1 {[%clk 0:01:01]}  Nf3+ {[%clk 0:00:05]} 23. Bxf3 {[%clk 0:01:00]}  Rxf3 {[%clk 0:00:06]} 24. Kg2 {[%clk 0:00:58]}  Ree3 {[%clk 0:00:05]} 25. g4 {[%clk 0:00:52]}  Rg3+ {[%clk 0:00:06]} 26. Kf2 {[%clk 0:00:52]}  Rxh3 {[%clk 0:00:04]} 27. Rxh3 {[%clk 0:00:49]}  Rxh3 {[%clk 0:00:05]} 28. Kg2 {[%clk 0:00:50]}  Re3 {[%clk 0:00:05]} 29. Kf2 {[%clk 0:00:49]}  Re6 {[%clk 0:00:05]} 30. Rh1 {[%clk 0:00:48]}  h6 {[%clk 0:00:05]} 31. Kf3 {[%clk 0:00:44]}  Kd7 {[%clk 0:00:04]} 32. Rh5 {[%clk 0:00:41]}  Ke7 {[%clk 0:00:04]} 33. a4 {[%clk 0:00:41]}  a6 {[%clk 0:00:02]} 34. a5 {[%clk 0:00:41]}  Rc6 {[%clk 0:00:02]} 35. c4 {[%clk 0:00:42]}  b6 {[%clk 0:00:02]} 36. Ke4 {[%clk 0:00:41]}  Re6+ {[%clk 0:00:02]} 37. Kd4 {[%clk 0:00:40]}  Rg6 {[%clk 0:00:02]} 38. Re5+ {[%clk 0:00:39]}  Kd7 {[%clk 0:00:02]} 39. Rd5+ {[%clk 0:00:38]}  Rd6 {[%clk 0:00:02]} 40. Ke5 {[%clk 0:00:22]}  Rxd5+ {[%clk 0:00:02]} 41. Kxd5 {[%clk 0:00:23]}  bxa5 {[%clk 0:00:02]} 42. Kc5 {[%clk 0:00:23]}  Kc8 {[%clk 0:00:01]} 43. d4 {[%clk 0:00:24]}  Kd8 {[%clk 0:00:01]} 44. d5 {[%clk 0:00:23]}  Kd7 {[%clk 0:00:02]} 45. Kd4 {[%clk 0:00:24]}  c6 {[%clk 0:00:03]} 46. c5 {[%clk 0:00:23]}  cxd5 {[%clk 0:00:04]} 47. Kxd5 {[%clk 0:00:24]}  a4 {[%clk 0:00:04]} 48. Kc4 {[%clk 0:00:24]}  Kc6 {[%clk 0:00:05]} 49. Kb4 {[%clk 0:00:25]}  a3 {[%clk 0:00:06]} 50. Kxa3 {[%clk 0:00:25]}  Kxc5 {[%clk 0:00:06]} 51. Ka4 {[%clk 0:00:26]}  Kd5 {[%clk 0:00:06]} 52. g5 {[%clk 0:00:27]}  hxg5 {[%clk 0:00:07]} 0-1


[Site "https://www.chess.com"]

[Event "Titled Tuesday Blitz February 07 Late 2023"]
[White "Mikaelyan, Arman"]
[Black "Duda, Jan-Krzysztof"]
[WhiteFideId "13304852"]
[BlackFideId "1170546"]
[WhiteElo "2523"]
[BlackElo "2724"]
[Result "1-0"]
[Round "10"]
[TimeControl "180+2"]
[Date "2023.02.07"]
[WhiteClock "0:00:09"]
[BlackClock "0:00:04"]

1. d4 {[%clk 0:03:00]}  b5 {[%clk 0:03:00]} 2. e4 {[%clk 0:02:57]}  Bb7 {[%clk 0:03:00]} 3. Bxb5 {[%clk 0:02:57]}  Bxe4 {[%clk 0:03:00]} 4. Nf3 {[%clk 0:02:57]}  e6 {[%clk 0:03:00]} 5. O-O {[%clk 0:02:57]}  Nf6 {[%clk 0:03:00]} 6. c4 {[%clk 0:02:55]}  Be7 {[%clk 0:02:59]} 7. Nc3 {[%clk 0:02:55]}  Bb7 {[%clk 0:02:59]} 8. Re1 {[%clk 0:02:55]}  O-O {[%clk 0:03:00]} 9. d5 {[%clk 0:02:54]}  c6 {[%clk 0:03:00]} 10. dxc6 {[%clk 0:02:39]}  Nxc6 {[%clk 0:03:01]} 11. Bf4 {[%clk 0:02:36]}  Rc8 {[%clk 0:03:00]} 12. Bd6 {[%clk 0:02:30]}  Bxd6 {[%clk 0:02:48]} 13. Qxd6 {[%clk 0:02:31]}  a6 {[%clk 0:02:49]} 14. Ba4 {[%clk 0:02:24]}  Na5 {[%clk 0:02:49]} 15. b3 {[%clk 0:02:19]}  Bxf3 {[%clk 0:02:48]} 16. gxf3 {[%clk 0:02:20]}  Nb7 {[%clk 0:02:42]} 17. Qxa6 {[%clk 0:02:15]}  Qc7 {[%clk 0:02:13]} 18. Rad1 {[%clk 0:02:00]}  Ra8 {[%clk 0:01:55]} 19. Nb5 {[%clk 0:02:00]}  Qb8 {[%clk 0:01:12]} 20. Qb6 {[%clk 0:02:00]}  Rc8 {[%clk 0:01:13]} 21. Nd6 {[%clk 0:01:52]}  Rc7 {[%clk 0:01:13]} 22. Re5 {[%clk 0:01:30]}  Nxd6 {[%clk 0:00:58]} 23. Qxb8+ {[%clk 0:01:28]}  Rxb8 {[%clk 0:00:59]} 24. Rxd6 {[%clk 0:01:28]}  Kf8 {[%clk 0:01:00]} 25. Bb5 {[%clk 0:01:15]}  Ke7 {[%clk 0:01:00]} 26. Rd2 {[%clk 0:01:14]}  d6 {[%clk 0:01:01]} 27. Re1 {[%clk 0:01:12]}  Nh5 {[%clk 0:00:49]} 28. a4 {[%clk 0:01:06]}  Nf4 {[%clk 0:00:49]} 29. a5 {[%clk 0:01:05]}  g5 {[%clk 0:00:49]} 30. a6 {[%clk 0:01:05]}  Rb6 {[%clk 0:00:48]} 31. Ra1 {[%clk 0:01:03]}  Ra7 {[%clk 0:00:48]} 32. Kf1 {[%clk 0:00:54]}  h5 {[%clk 0:00:48]} 33. Ra5 {[%clk 0:00:47]}  h4 {[%clk 0:00:47]} 34. b4 {[%clk 0:00:47]}  f5 {[%clk 0:00:28]} 35. Ke1 {[%clk 0:00:39]}  Rb8 {[%clk 0:00:19]} 36. Rd4 {[%clk 0:00:34]}  Ng6 {[%clk 0:00:13]} 37. Ke2 {[%clk 0:00:31]}  Rc8 {[%clk 0:00:09]} 38. Rd2 {[%clk 0:00:23]}  Ne5 {[%clk 0:00:08]} 39. Rc2 {[%clk 0:00:23]}  Rb8 {[%clk 0:00:04]} 40. c5 {[%clk 0:00:23]}  dxc5 {[%clk 0:00:03]} 41. bxc5 {[%clk 0:00:21]}  Rc8 {[%clk 0:00:03]} 42. Ra3 {[%clk 0:00:20]}  Nc6 {[%clk 0:00:02]} 43. Rd2 {[%clk 0:00:18]}  Kf6 {[%clk 0:00:02]} 44. Rd6 {[%clk 0:00:17]}  Ne7 {[%clk 0:00:01]} 45. Bc4 {[%clk 0:00:16]}  Rxc5 {[%clk 0:00:02]} 46. Rxe6+ {[%clk 0:00:16]}  Kg7 {[%clk 0:00:02]} 47. Kd3 {[%clk 0:00:16]}  Ng6 {[%clk 0:00:02]} 48. Rb6 {[%clk 0:00:15]}  Ne5+ {[%clk 0:00:02]} 49. Kd4 {[%clk 0:00:15]}  Rxc4+ {[%clk 0:00:02]} 50. Kxe5 {[%clk 0:00:15]}  Rc5+ {[%clk 0:00:02]} 51. Kd6 {[%clk 0:00:15]}  Rcc7 {[%clk 0:00:02]} 52. Rab3 {[%clk 0:00:13]}  Rf7 {[%clk 0:00:02]} 53. Kc5 {[%clk 0:00:11]}  Rfc7+ {[%clk 0:00:02]} 54. Kb5 {[%clk 0:00:10]}  Re7 {[%clk 0:00:02]} 55. Ka5 {[%clk 0:00:10]}  Re5+ {[%clk 0:00:01]} 56. R3b5 {[%clk 0:00:10]}  Re1 {[%clk 0:00:01]} 57. Rb7+ {[%clk 0:00:11]}  Kf6 {[%clk 0:00:01]} 58. Rxa7 {[%clk 0:00:11]}  Re2 {[%clk 0:00:01]} 59. Rc7 {[%clk 0:00:10]}  Rxf2 {[%clk 0:00:01]} 60. a7 {[%clk 0:00:11]}  Rxf3 {[%clk 0:00:01]} 61. Rb4 {[%clk 0:00:10]}  Ke5 {[%clk 0:00:02]} 62. a8=Q {[%clk 0:00:09]}  g4 {[%clk 0:00:03]} 63. Qe8+ {[%clk 0:00:09]}  Kd6 {[%clk 0:00:04]} 64. Rc6+ {[%clk 0:00:09]} 1-0


[Site "https://www.chess.com"]

[Event "Titled Tuesday Blitz February 07 Late 2023"]
[White "Deac, Bogdan-Daniel"]
[Black "Stoyanov, Tsvetan"]
[WhiteFideId "1226380"]
[BlackFideId "2917173"]
[WhiteElo "2700"]
[BlackElo "2454"]
[Result "0-1"]
[Round "10"]
[TimeControl "180+2"]
[Date "2023.02.07"]
[WhiteClock "0:00:03"]
[BlackClock "0:00:06"]

1. c4 {[%clk 0:03:00]}  e5 {[%clk 0:02:59]} 2. d3 {[%clk 0:03:01]}  Nf6 {[%clk 0:02:59]} 3. Nf3 {[%clk 0:03:01]}  Nc6 {[%clk 0:02:59]} 4. a3 {[%clk 0:03:02]}  d5 {[%clk 0:03:00]} 5. cxd5 {[%clk 0:03:03]}  Nxd5 {[%clk 0:03:01]} 6. e4 {[%clk 0:03:03]}  Nb6 {[%clk 0:03:00]} 7. Be3 {[%clk 0:03:04]}  Be7 {[%clk 0:03:00]} 8. Nbd2 {[%clk 0:03:04]}  Be6 {[%clk 0:03:00]} 9. Rc1 {[%clk 0:03:05]}  O-O {[%clk 0:03:01]} 10. Be2 {[%clk 0:03:05]}  f5 {[%clk 0:03:00]} 11. O-O {[%clk 0:02:59]}  f4 {[%clk 0:02:41]} 12. Bc5 {[%clk 0:02:56]}  Bxc5 {[%clk 0:02:24]} 13. Rxc5 {[%clk 0:02:54]}  Qd6 {[%clk 0:02:22]} 14. Rc1 {[%clk 0:02:40]}  a5 {[%clk 0:02:18]} 15. Nb3 {[%clk 0:02:24]}  Rad8 {[%clk 0:01:56]} 16. Nc5 {[%clk 0:02:11]}  Bc8 {[%clk 0:01:56]} 17. b4 {[%clk 0:02:09]}  axb4 {[%clk 0:01:53]} 18. axb4 {[%clk 0:02:10]}  Kh8 {[%clk 0:01:50]} 19. Qb3 {[%clk 0:02:09]}  Qe7 {[%clk 0:01:40]} 20. Qc3 {[%clk 0:01:34]}  Nd4 {[%clk 0:01:21]} 21. Nxd4 {[%clk 0:01:34]}  Rxd4 {[%clk 0:01:21]} 22. b5 {[%clk 0:01:33]}  f3 {[%clk 0:01:05]} 23. gxf3 {[%clk 0:00:41]}  Bh3 {[%clk 0:01:04]} 24. Kh1 {[%clk 0:00:41]}  Bxf1 {[%clk 0:01:04]} 25. Rxf1 {[%clk 0:00:42]}  Rf6 {[%clk 0:01:02]} 26. Rg1 {[%clk 0:00:39]}  Rh6 {[%clk 0:00:58]} 27. Rg3 {[%clk 0:00:28]}  Na4 {[%clk 0:00:33]} 28. Nxa4 {[%clk 0:00:28]}  Rxa4 {[%clk 0:00:34]} 29. Kg2 {[%clk 0:00:28]}  Ra8 {[%clk 0:00:27]} 30. d4 {[%clk 0:00:22]}  exd4 {[%clk 0:00:24]} 31. Qxd4 {[%clk 0:00:23]}  Rd6 {[%clk 0:00:22]} 32. Qc3 {[%clk 0:00:22]}  Re8 {[%clk 0:00:20]} 33. Bc4 {[%clk 0:00:17]}  Rf6 {[%clk 0:00:19]} 34. Bd5 {[%clk 0:00:16]}  c6 {[%clk 0:00:18]} 35. bxc6 {[%clk 0:00:16]}  bxc6 {[%clk 0:00:19]} 36. Bc4 {[%clk 0:00:15]}  Qe5 {[%clk 0:00:18]} 37. Qe3 {[%clk 0:00:15]}  h6 {[%clk 0:00:17]} 38. Qa7 {[%clk 0:00:13]}  Qe7 {[%clk 0:00:14]} 39. Qe3 {[%clk 0:00:11]}  Qc7 {[%clk 0:00:07]} 40. h4 {[%clk 0:00:09]}  Ref8 {[%clk 0:00:06]} 41. Qc3 {[%clk 0:00:08]}  Qf4 {[%clk 0:00:06]} 42. Be2 {[%clk 0:00:05]}  Qxh4 {[%clk 0:00:06]} 43. Qc5 {[%clk 0:00:05]}  Qf4 {[%clk 0:00:05]} 44. Qe7 {[%clk 0:00:05]}  R6f7 {[%clk 0:00:05]} 45. Qc5 {[%clk 0:00:06]}  Qf6 {[%clk 0:00:05]} 46. Bc4 {[%clk 0:00:06]}  Re7 {[%clk 0:00:05]} 47. Bb3 {[%clk 0:00:05]}  Re5 {[%clk 0:00:05]} 48. Qa7 {[%clk 0:00:05]}  Rg5 {[%clk 0:00:05]} 49. Bd1 {[%clk 0:00:04]}  Rxg3+ {[%clk 0:00:05]} 50. fxg3 {[%clk 0:00:05]}  Qb2+ {[%clk 0:00:06]} 51. Kh3 {[%clk 0:00:05]}  Rd8 {[%clk 0:00:06]} 52. Ba4 {[%clk 0:00:05]}  Qf6 {[%clk 0:00:06]} 53. f4 {[%clk 0:00:04]}  Qe6+ {[%clk 0:00:05]} 54. f5 {[%clk 0:00:04]}  Qxe4 {[%clk 0:00:06]} 55. Qf7 {[%clk 0:00:05]}  Qxa4 {[%clk 0:00:05]} 56. f6 {[%clk 0:00:05]}  Rg8 {[%clk 0:00:03]} 57. fxg7+ {[%clk 0:00:05]}  Rxg7 {[%clk 0:00:04]} 58. Qf8+ {[%clk 0:00:06]}  Kh7 {[%clk 0:00:04]} 59. Qf5+ {[%clk 0:00:06]}  Kg8 {[%clk 0:00:05]} 60. Qe6+ {[%clk 0:00:04]}  Rf7 {[%clk 0:00:05]} 61. Qe8+ {[%clk 0:00:03]}  Kg7 {[%clk 0:00:05]} 62. Qe5+ {[%clk 0:00:04]}  Kf8 {[%clk 0:00:06]} 63. Qd6+ {[%clk 0:00:04]}  Re7 {[%clk 0:00:05]} 64. Qxh6+ {[%clk 0:00:02]}  Ke8 {[%clk 0:00:06]} 65. Qg6+ {[%clk 0:00:03]}  Kd7 {[%clk 0:00:06]} 66. Qf5+ {[%clk 0:00:03]}  Kc7 {[%clk 0:00:06]} 0-1


[Site "https://www.chess.com"]

[Event "Titled Tuesday Blitz February 07 Late 2023"]
[White "Yoo, Christopher Woojin"]
[Black "Kosakowski, Jakub"]
[WhiteFideId "30909694"]
[BlackFideId "1185080"]
[WhiteElo "2607"]
[BlackElo "2485"]
[Result "1-0"]
[Round "10"]
[TimeControl "180+2"]
[Date "2023.02.07"]
[WhiteClock "0:01:47"]
[BlackClock "0:00:56"]

1. e4 {[%clk 0:03:00]}  c6 {[%clk 0:02:58]} 2. Nf3 {[%clk 0:03:01]}  d5 {[%clk 0:02:58]} 3. exd5 {[%clk 0:03:00]}  cxd5 {[%clk 0:02:59]} 4. d4 {[%clk 0:03:01]}  Nf6 {[%clk 0:02:58]} 5. Ne5 {[%clk 0:03:00]}  Nc6 {[%clk 0:02:57]} 6. Bb5 {[%clk 0:03:00]}  Bd7 {[%clk 0:02:57]} 7. Nxd7 {[%clk 0:03:00]}  Qxd7 {[%clk 0:02:58]} 8. c3 {[%clk 0:02:59]}  a6 {[%clk 0:02:56]} 9. Bd3 {[%clk 0:03:00]}  e6 {[%clk 0:02:56]} 10. O-O {[%clk 0:03:00]}  Bd6 {[%clk 0:02:55]} 11. f4 {[%clk 0:03:00]}  Qc7 {[%clk 0:02:54]} 12. Qe2 {[%clk 0:02:57]}  O-O {[%clk 0:02:52]} 13. g3 {[%clk 0:02:54]}  Rae8 {[%clk 0:02:43]} 14. Nd2 {[%clk 0:02:55]}  Nd7 {[%clk 0:02:42]} 15. Nf3 {[%clk 0:02:53]}  f6 {[%clk 0:02:41]} 16. Nh4 {[%clk 0:02:49]}  e5 {[%clk 0:02:32]} 17. Qh5 {[%clk 0:02:26]}  e4 {[%clk 0:01:44]} 18. Qxd5+ {[%clk 0:02:24]}  Kh8 {[%clk 0:01:44]} 19. Bxe4 {[%clk 0:02:21]}  Nb6 {[%clk 0:01:41]} 20. Qf5 {[%clk 0:02:13]}  g6 {[%clk 0:01:41]} 21. Nxg6+ {[%clk 0:02:11]}  hxg6 {[%clk 0:01:42]} 22. Qxg6 {[%clk 0:02:11]}  Qg7 {[%clk 0:01:38]} 23. Qh5+ {[%clk 0:02:10]}  Kg8 {[%clk 0:01:38]} 24. Bc2 {[%clk 0:01:51]}  Qc7 {[%clk 0:00:57]} 25. Bb3+ {[%clk 0:01:46]}  Kg7 {[%clk 0:00:56]} 26. f5 {[%clk 0:01:47]} 1-0


[Site "https://www.chess.com"]